{"text_format":"3","workbook":"xlsx","n_sheets":9,"sheets":["Hinweise","Deckblatt","Vertretungsregelung","Sachausgaben","Angaben zu den Sachausgaben","Abschreibungen","Personalausgaben","Angaben zur Fachkraft","Ausgaben-u.Finanzierungsplan "],"not_rendered":{"defined_names":9,"comments":2},"read":"whole","date_system":"1900"}

{"sheet":"Hinweise","index":0,"n_rows":1,"n_cols":1,"rows_kept":1,"merged":[[2,0,2,7],[4,0,4,7],[5,0,5,7],[6,0,6,7],[7,0,7,7],[8,0,8,7],[9,0,9,7],[10,0,10,7],[11,0,11,7],[12,0,12,7],[13,0,13,7],[14,0,14,7],[15,0,15,7],[16,0,16,7],[17,0,17,7],[18,0,18,7],[19,0,19,7],[20,0,20,7],[21,0,21,7],[22,0,22,7],[23,0,23,7],[24,0,24,7]]}
["Landeshauptstadt Dresden  -  Förderung von Trägern der freien Jugendhilfe  -  Arbeitsweltbezogene Jugendsozialarbeit"]

{"sheet":"Deckblatt","index":1,"n_rows":51,"n_cols":23,"rows_kept":51,"merged":[[2,0,3,9],[2,11,3,20],[4,0,5,9],[5,11,7,20],[6,0,7,9],[8,0,9,9],[9,11,10,20],[12,11,14,20],[20,6,20,13],[20,14,20,17],[23,6,23,11],[23,14,23,15],[25,0,27,7],[25,13,27,20],[26,8,27,12],[28,0,28,11],[28,13,28,20],[29,0,29,11],[29,13,29,20],[30,0,30,11],[30,13,30,20],[31,0,31,11],[31,13,31,20],[32,0,32,11],[32,13,32,20],[33,0,33,11],[33,13,33,20],[34,0,34,20],[38,0,38,3],[38,4,38,6],[38,7,38,10],[38,11,38,13],[38,14,38,16],[38,17,38,20],[40,0,43,20],[45,0,45,20],[48,0,48,5],[48,15,48,20],[50,0,50,20]]}
["Landeshauptstadt Dresden - Jugendamt",{"$nulls":19},"Förderung von Trägern der freien Jugendhilfe"]
["Antragsteller:",{"$nulls":10},"Aktenzeichen (sofern bekannt)"]
[{"$nulls":22},"Nur die fett umrandeten Felder müssen am PC ausgefüllt werden."]
[]
[{"$nulls":11},"Angebotsbezeichnung:"]
[]
[]
[]
[{"$nulls":11},"Anschrift des Angebotes (Durchführungsort)"]
[]
[]
["Antrags- und Bewilligungsbehörde:                                                                                                                                                                                                                                                                                    "]
["Landeshauptstadt Dresden",{"$nulls":10},"Abgabetermin: 31. August \ndes Jahres vor dem Antragsjahr"]
["Jugendamt, Abt. Kinder-, Jugend- und"]
["Familienförderung, SG Zuschusswesen"]
["Postfach 12 00 20"]
["01001 Dresden "]
[{"$nulls":11},"Arbeitsweltbezogene Jugendsozialarbeit"]
[{"$nulls":11}," - Antrag auf Gewährung einer Zuwendung -"]
[]
["Zeitraum:",{"$nulls":13},2024]
[{"$nulls":6},"Datum (TT.MM) von - bis",{"$nulls":7},"Jahr (JJJJ)"]
[]
["Fördermittelantrag:",{"$nulls":5},{"$f":"'Ausgaben-u.Finanzierungsplan '!O9","v":0},{"$nulls":5},"EUR",null,{"$f":"Personalausgaben!E21","v":0},null,"VzÄ",{"$nulls":4},"Erst die Folgeblätter ausfüllen!"]
[]
["Erforderliche Unterlagen",{"$nulls":12},"Liegt der Antragsbehörde bereits vor!\nDie Unterlagen müssen nicht erneut eingereicht werden, jedoch ist das Datum der aktuellen Fassung hier zu vermerken!"]
[{"$nulls":8},"Dem Antrag beigefügt:\n(wenn ja, ankreuzen)"]
[]
["Satzung/(Jugend)Ordnung/Gesellschaftervertrag"]
["aktueller Vereins-/Handelsregisterauszug"]
["Vertretungsberechtigung (Formular siehe Folgeblatt)"]
["Nachweis der Gemeinnützigkeit \n(i. d. R. Steuerfreistellungsbescheid d. Finanzamtes)"]
["Anerkennung nach § 75 SGB VIII (sofern Förderung auf Dauer angelegt oder Träger anderer Gebietskörperschaft angehört)"]
["Konzeption inkl. Qualitätsentwicklungsbeschreibung (Angebote mit Fachkraftförderung)"]
["Die Jahresarbeitsplanung ist bis zum 30. November des Jahres vor dem Antragsjahr einzureichen!"]
["Ansprechperson"]
["für Förderung/Finanzen",{"$nulls":10},"für die sozialpädagogische/fachliche Arbeit im Angebot"]
["Name",{"$nulls":3},"Tel./Mobilfunk:",null,null,"E-Mail-Adresse",{"$nulls":3},"Name",null,null,"Tel./Mobilfunk:",null,null,"E-Mail-Adresse"]
[]
["Erklärung des Antragstellers:"]
["Der Antragsteller erklärt, dass 1. das Vorhaben noch nicht begonnen ist (die Fortsetzung jährlich wiederkehrender Maßnahmen, bei deren Förderungsvoraussetzungen keine Änderungen eingetreten sind, gilt nicht als vorzeitiger Vorhabensbeginn), dass 2. die Angaben im Antrag vollständig und richtig sind, dass 3. die Grundsätze einer sparsamen und wirtschaftlichen Haushaltsplanung eingehalten wurden und 4. die Gewähr der zweckentsprechenden und wirtschaftlichen Verwendung der Mittel gegeben ist, 5. die fachlichen Voraussetzungen für die geplante Maßnahme erfüllt und 6. gemeinnützige Ziele verfolgt werden sowie 7. die Gewähr für eine den Zielen des Grundgesetzes förderliche Arbeit gegeben ist."]
[]
[]
[]
["Belehrung:"]
["Der Antragsteller wird belehrt, dass die Ausgaben - sofern eine  Vorsteuerabzugsberechtigung vorliegt - ohne Umsatzsteuer anzugeben sind und Änderungen, die Auswirkungen auf den Antrag haben, unverzüglich und unaufgefordert anzuzeigen "]
["sind. Es liegt eine Vorsteuerabzugsberechtigung vor (sofern zutreffend ankreuzen): "]
[]
[]
["Ort, Datum",{"$nulls":6},"rechtsverbindliche Unterschrift(en)",{"$nulls":7},"in PC-/Blockschrift"]
["Anlagen: Vertretungsberechtigung, Sachausgabenblatt, Angaben zu den Sachausgaben, Personalausgabenblatt , Angaben zur Fachkraft, Ausgaben- und Finanzierungsplan"]

{"sheet":"Vertretungsregelung","index":2,"n_rows":54,"n_cols":19,"rows_kept":54,"merged":[[0,13,0,16],[2,8,2,16],[5,0,5,16],[10,7,10,16],[12,0,12,16],[13,18,19,21],[14,11,14,13],[14,14,14,16],[15,1,15,10],[15,14,15,16],[16,1,16,10],[16,14,16,16],[17,1,17,10],[17,14,17,16],[18,1,18,10],[18,14,18,16],[19,1,19,10],[19,14,19,16],[20,1,20,10],[20,14,20,16],[23,0,23,16],[24,1,24,15],[28,0,28,16],[29,11,30,13],[29,14,30,16],[31,1,31,10],[31,14,31,16],[32,1,32,10],[32,14,32,16],[33,1,33,10],[33,14,33,16],[36,4,36,16],[37,1,37,16],[39,1,39,11],[39,15,43,15],[40,1,40,11],[44,1,44,16],[47,14,47,16],[49,0,50,15],[51,0,51,13],[52,0,52,3],[52,12,52,16]]}
["Landeshauptstadt Dresden - Jugendamt",{"$nulls":11},"Az:",{"$f":"Deckblatt!L3","v":0}]
[]
["Vertretungsregelung für den Zeitraum"]
[]
["Maßnahmeträger: (Name des Vereins/ der Körperschaft/Personenvereinigung)"]
[]
[]
["Der Maßnahmeträger ist:  (Zutreffendes ankreuzen)"]
[]
["rechtsfähig",{"$nulls":4},"nicht rechtsfähig",null,"und ggf. Teil des rechtsfähigen Körperschaft (benennen):"]
[]
["Vertretungsregelung:"]
["Vertretungsberechtiger Vorstand gemäß Satzung/Ordnung/Gesellschaftervertrag:"]
[{"$nulls":12},"Vertretungsberechtigung",{"$nulls":5},"In der Satzung ist festgelegt, ob der Verein durch eine oder mehrere Personen gleichzeitig nach innen und außen vertreten wird. Besteht für ein oder mehrere Vorstandsmitglieder das alleinige Vertretungsrecht, wird nur die Spalte \"allein\" angekreuzt. Kann der Verein nur durch mehrere Vorstandsmitglieder gleichzeitig vertreten werden, muss in der Spalte \"gemeinsam mit\" eingetragen werden, wer mit wem gemeinsam vertritt. Z. B.: \"2.\" oder \"2. oder 3. oder 4.\" (wenn jeweils 2 gemeinsam vertreten)"]
["Nr.","Name, Vorname, Funktion (z. B. Erster Vorsitzender)",{"$nulls":9},"allein\n(ankreuzen)",null,null,"gemeinsam mit \n(Nr. nennen)"]
["1."]
["2."]
["3."]
["4."]
["5."]
["6."]
[]
["Geschäftsführer:"]
["Der vertretungsberechtigte Vorstand hat gemäß Satzung/Ordung/Gesellschaftervertrag folgende Person zum Geschäftsführer ernannt:"]
[]
[null,"Name, Vorname"]
[]
["Vollmacht/Unterschriftsberechtigung "]
["Die vertretungsberechtigte(n) Person(en) erteilen Untervollmachten an:"]
[{"$nulls":11},"allein\n(ankreuzen)",null,null,"gemeinsam mit \n(Nr. nennen)"]
["Name, Vorname, Funktion"]
["1."]
["2."]
["3."]
["Die Untervollmacht umfasst folgende Geschäfts- bzw. Verwaltungshandlungen:"]
[" - für alle Angebote"]
[" - für das/die Angebot(e)"]
[]
[]
[null," - Beantragung von Fördermitteln",{"$nulls":13},"Zutreffendes ankreuzen"]
[null," - Beantragung von Auszahlungen"]
[null," - Verwendungsnachweisführung"]
[null," - Einlegen von Rechtsmitteln (Widerspruch, Klage)"]
[null," - andere (benennen)"]
[]
[]
["Mitglieder des Stadtjugendring Dresden e. V.:"]
["Die Vollmacht zwischen dem o. g. Träger und dem Stadtjugendring Dresden e. V. vom "]
[]
["behält hinsichtlich der Ermächtigung zu allen Verwaltungshandlungen, die Beantragung und Gewährung von Fördermitteln der Landeshauptstadt Dresden betreffend, ihre Gültigkeit: (ankreuzen)"]
[]
["Die aktuelle Vollmacht ist beigefügt: (ankreuzen)"]
[]
["Ort, Datum",{"$nulls":4},"rechtsverbindliche Unterschrift(en)",{"$nulls":6},"in Block-/PC-Schrift"]

{"sheet":"Sachausgaben","index":3,"n_rows":67,"n_cols":22,"rows_kept":67,"merged":[[0,13,0,15],[1,6,1,8],[1,13,1,15],[2,0,14,0],[2,2,3,3],[2,6,2,9],[2,10,2,12],[2,13,2,15],[3,13,3,15],[4,13,4,15],[5,6,5,9],[5,10,5,12],[5,13,5,15],[6,1,7,1],[6,2,7,7],[6,13,6,15],[7,13,7,15],[8,13,8,15],[9,13,9,15],[10,13,10,15],[11,13,11,15],[12,13,12,15],[13,13,13,15],[14,13,14,15],[15,13,15,15],[16,0,24,0],[16,2,16,12],[16,13,16,15],[17,1,17,15],[18,2,18,12],[18,13,18,15],[19,2,19,12],[19,13,19,15],[20,2,20,12],[20,13,20,15],[21,2,21,12],[21,13,21,15],[22,1,24,1],[22,2,24,2],[22,3,22,12],[22,13,22,15],[23,3,23,12],[23,13,23,15],[24,3,24,12],[24,13,24,15],[25,13,25,15],[26,0,36,0],[26,2,26,12],[26,13,26,15],[27,2,27,12],[27,13,27,15],[28,1,28,15],[29,2,29,12],[29,13,29,15],[30,2,30,12],[30,13,30,15],[31,2,31,12],[31,13,31,15],[32,2,32,5],[32,7,32,8],[32,10,32,11],[32,13,32,15],[33,2,33,5],[33,7,33,8],[33,10,33,11],[33,13,33,15],[34,1,36,1],[34,2,36,2],[34,3,34,12],[34,13,34,15],[35,3,35,12],[35,13,35,15],[36,3,36,12],[36,13,36,15],[37,13,37,15],[38,0,39,0],[38,2,38,12],[38,13,38,15],[39,2,39,12],[39,13,39,15],[40,0,41,0],[40,13,40,15],[41,13,41,15],[42,13,42,15],[43,13,43,15],[44,0,45,15],[46,0,46,15]]}
["Landeshauptstadt Dresden - Jugendamt",{"$nulls":5},{"$f":"Deckblatt!U1","v":"Förderung von Trägern der freien Jugendhilfe"},{"$nulls":6},{"$f":"Deckblatt!L3","v":0}]
["Sachausgabenplanung",{"$nulls":5},{"$f":"Deckblatt!O21","v":2024},{"$nulls":6},"Ausgaben \nin EUR"]
["1. Gebäude-/Bewirtschaftungsausgaben \n(für Flächen, die durch das Angebot genutzt werden)","1.1","Miete *2\n(gemäß Vertrag)",null,"Kaltmiete *1",null,"vom Angebot genutzte Fläche in qm:"]
[{"$nulls":4},"Betriebskosten ",null,"(nur f. Flächen, die vom Angebot genutzt werden)"]
[null,"1.2","Weitere Betriebskosten einschl. Medien"]
[null,"1.3","Gebäudepacht/Erbbauzins *1",{"$nulls":3},"vom Angebot genutzte Fläche in qm:"]
[null,"1.4","Nutzungsentgelte (stundenweise Nutzung, pauschale Abgeltung aller Ausgaben):",{"$nulls":5},"fremde Räume "]
[{"$nulls":8},"eigene Räume"]
[null,"1.5","Reinigungskosten/Hausverbrauchsmaterial/Müllentsorgung"]
[null,"1.6","Erhaltungsaufwand/Reparaturkosten bewegliche Sachen"]
[null,"1.7","Werterhaltung/Reparaturkosten für Räume/Grundstück"]
[null,"1.8","Abschreibungen auf Gebäude"]
[null,"1.9","Gebühren/Beiträge/Steuern/Versicherungen Gebäude, Inventarversicherung"]
[null,"1.10","Reinigungsdienste"]
[null,"1.11","Hausmeisterdienste"]
[{"$nulls":12},"Summe 1.",{"$f":"SUM(N3:P15)","v":0},{"$nulls":7}," "]
["2. Ausgaben im Rahmen der sozialpädagogischen Arbeit","2.1","Verbrauchsmaterialien, bewegliche Sachen/Ausstattung für die inhaltliche Arbeit -> Gegenstände über 500 Euro brutto eintragen inkl. Kaufpreis:"]
[]
[null,"2.2","Eintrittsgelder, Fahrtkosten für spontane Gruppenaktivitäten außer Haus"]
[null,"2.3","Ausgaben für Feste/Veranstaltungen (inkl. Honorar) *2",{"$nulls":18}," "]
[null,"2.4","Honorare für Künstler/-innen und/oder Einzelprojektleitung\n(nicht für zeitlich begrenzte Maßnahmen, Feste/Veranstaltungen) *2"]
[null,"2.5","Lebensmittel*2"]
[null,"2.6","sonstige Ausgaben für sozialpäd. Arbeit (benennen!)"]
[]
[]
[{"$nulls":12},"Summe 2.",{"$f":"SUM(N17:P25)","v":0}]
["3. weitere Sachausgaben","3.1","Telekommunikation, Internetnutzung"]
[null,"3.2","Wirtschaftsgüter/bewegliche Sachen (in Abgrenzung zu 2.1) -> Gegenstände über 500 Euro brutto eintragen inkl. Kaufpreis:"]
[]
[null,"3.3","Ausgaben für Dienst-Kfz  (i. d. R. anteilig entsprechend dem Nutzungsanteil für das Angebot)"]
[null,"3.4","Dienstgänge: Fahrtkostenerstattung Nutzung Privat-Kfz / Stadtfahrten (Fahrkarten)"]
[null,"3.5","Fort- u. Weiterbildungskosten (inkl. Reise- u. Übernachtungskosten) einschl. Fachtagungen/Supervision für haupt- u. nebenberufliche Mitarbeiter/-innen"]
[null,"3.6","Bundesfreiwilligendienst, Freiwilliges Soziales Jahr",{"$nulls":3},"*2","Anzahl der Personen:",null,null,"Anzahl aller Monate:"]
[null,"3.7","Aufwandsentschädigung Ehrenamtliche/Praktikanten",{"$nulls":3},"*2","Anzahl der Personen:",null,null,"Anzahl aller Monate:"]
[null,"3.8","sonstige Sachausgaben (benennen!)\nz.B.Fachbücher"]
[]
[]
[{"$nulls":12},"Summe 3.",{"$f":"SUM(N27:P37)","v":0}]
["4. Verwaltung","4.1","Verwaltungsaufwendungen im Angebot (Büromaterial, Porto, öff. Bekanntmachungen, Anschaffung/Leasing/\nWartung Bürotechnik, Buchhaltung, Gehaltsberechnung)"]
[null,"4.2","Verwaltungsumlage (Sach- und Personalausgaben für zentrale Verwaltung, Planung, Steuerung und Kontrrolle; gilt nicht bei Geschäftsstellenförderung)",{"$nulls":16}," "]
["5. zeitlich begrenzte Maßnahmen","5.1","Bildungsmaßnahmen *2"]
[null,"5.2","Erlebnispädagogische Maßnahmen *2"]
[{"$nulls":12},"Sachausgaben gesamt",{"$f":"N16+N26+N38+N39+N40+N41+N42","v":0}]
[{"$nulls":12},"Fördermittelantrag"]
["*1 Der Vertrag ist, sofern im Jugendamt noch nicht vorliegend, mit einzureichen!\n*2 Zu diesen Ausgaben sind weitere Angaben notwendig siehe Folgeblatt \"Angaben zu den Sachausgaben\"!"]
[]
[]
[]
[]
["Finanzierungsplan"]
["beantragte Zuwendung Jugendamt"]
["weitere öffentliche Mittel (EU/Bund/Land/AA/Kommune)"]
["Art: "]
[]
["sonstige Finanzierungsquellen"]
["Art: "]
[]
["Teilnehmerbeiträge"]
["weitere Eigenmittel"]
["gesamt",{"$nulls":12},{"$f":"SUM(N51:P59)","v":{"v":0,"d":"0.00"}}]
[]
["*1 Abgrenzung zu beweglichen Sachen des Anlagevermögens - vergleiche Formblatt BS-Antrag "]
[]
[]
[]
[]
["Ort, Datum",{"$nulls":5},"rechtsverbindliche Unterschrift(en)"]

{"sheet":"Angaben zu den Sachausgaben","index":4,"n_rows":16,"n_cols":18,"rows_kept":16,"merged":[[0,14,0,16],[2,12,2,13],[3,0,3,16],[4,1,4,16],[6,1,6,16],[7,1,7,16],[9,1,9,16],[13,0,51,16],[17,17,21,20]]}
["Landeshauptstadt Dresden - Jugendamt",{"$nulls":8},{"$f":"Sachausgaben!G1","v":"Förderung von Trägern der freien Jugendhilfe"},{"$nulls":3},"Az:",{"$f":"Deckblatt!L3","v":0}]
[]
["Notwendige Angaben zu den Sachausgaben",{"$nulls":11},{"$f":"Deckblatt!O21","v":2024}]
["Folgende geplante Ausgaben bzw. Maßnhamen sind genauer zu beschreiben:"]
["1.1","Miete: In welcher Höhe werden Einnahmen auf Grund der Vermietung von Flächen, deren Ausgaben Bestandteil des Fördermittelantrages sind, geplant?"]
["2.3","Feste/Veranstaltungen: Inhalt, Veranstaltungsort, Zielsetzung, geplante Anzahl an Teilnehmern"]
["2.4","Honorare Künstler/-innen, Einzelprojektleitung: Einsatzgrund, Anzahl der Honorarstunden"]
["2.5","Lebensmittel: Welchen Zweck sollen die Lebensmittel erfüllen; warum kommen sie zum Einsatz? (reine Verpflegungskosten sind nicht zuwendungsfähig)"]
["3.6","Bundesfreiwilligendienst: Welche Aufgaben sollen übernommen werden?"]
["3.7","Aufwandsentschädigung: Welche Aufgaben sollen übernommen werden?"]
["5.1","Bildungsmaßnahmen (Inhalt, Zielgruppe, päd. Zielsetzung)"]
["5.2","erlebnispädagogische Maßnahmen (Inhalt, Zielgruppe, päd. Zielsetzung)"]
["Angaben zu o. g. Punkten (ggf. Blatt anfügen)"]
[]
[]
[{"$nulls":17},"Mit Doppelklick ins Feld / Absatz einfügen: Alt und Enter gleichzeitig klicken"]

{"sheet":"Abschreibungen","index":5,"n_rows":30,"n_cols":7,"rows_kept":30,"merged":[[3,0,3,5],[5,0,5,1],[5,2,5,5],[6,0,6,1],[6,2,6,5],[7,0,7,1],[7,2,7,5],[9,0,9,1],[9,2,9,3],[11,0,11,1],[13,0,13,1],[15,0,15,1],[17,0,17,1],[18,6,27,8],[19,0,19,1],[21,0,21,1],[23,0,23,1],[25,0,25,1],[27,0,27,5]]}
["Landeshauptstadt Dresden - Jugendamt",{"$nulls":3},"Az:",{"$f":"Deckblatt!L3","v":0}]
[]
["Berechnung Abschreibungen auf Gebäude",null,null,{"$f":"Deckblatt!O21","v":2024}]
["Das Gebäude muss sich im Eigentum des Träger befinden. Es werden nur für die Flächen, die durch das Jugendhilfeangebot genutzt werden, Abschreibungen als zuwendungsfähig anerkannt. Grundlage der Berechnung sind die Anschaffungs- oder Herstellungskosten für das Gebäude, welche um die öffentlichen Zuschüsse, welche seit 1991 in die Anschaffung oder Herstellung des Gebäudes geflossen sind, zu bereinigen sind. Der verbleibende Betrag, herunter gebrochen auf die Nutzungsfläche für das Angebot, wird entsprechend der festgelegten Nutzungsdauer (siehe AfA-Tabellen) linear abgeschrieben."]
[]
["Träger:",null,{"$f":"Deckblatt!A3","v":0}]
["Angebotsbezeichnung:",null,{"$f":"Deckblatt!L6","v":0}]
["Gebäudeanschrift:"]
[]
["Zeitpunkt der Anschaffung (Monat/Jahr):"]
[]
["Kosten der Anschaffung/Herstellung:",null,null,"Euro","brutto od. netto:",null,"\"brutto\" oder \"netto\" eintragen -> brutto: die Kosten beinhalten die MwSt., netto Kosten ohne MwSt."]
[]
["öffentliche Zuschüsse seit 1991:",null,null,"Euro"]
[]
["um öffentliche Zuschüsse bereinigte Anschaffungs-/ Herstellungskosten:",null,{"$f":"C12-C14","v":0},"Euro"]
[]
["Nutzungsdauer gemäß \nAfA-Tabelle:",null,null,"Jahre"]
[null,null,"bei Nettokosten",null,"bei Bruttokosten",null,"Der Abschreibungssatz basiert immer auf den Netto-Anschaffungs- bzw. Herstellungskosten (oh. USt.), da auf die Umsatzsteuer keine Abschreibungen geltend gemacht werden können. Werden Bruttokosten für Anschaffung/Herstellung zum Ansatz gebracht (für gemeinnützige Vereine im förderrelevanten Ausgabenbereich die Regel), sind die geringeren Abschreibungen aus dem Feld \"brutto\" zuwendungsfähig."]
["zuwendungsfähige Abschreibung pro Jahr ganzes Gebäude ",null,{"$f":"C16/C18","v":{"$error":"#DIV/0!"}},"Euro",{"$f":"(C16*100/119)/C18","v":{"$error":"#DIV/0!"}},"Euro"]
[]
["Nutzung des Gebäudes durch das Angebot:",null,null,"Prozent"]
[null,null,"netto",null,"brutto"]
["Abschreibungssatz für das Jugendhilfeangebot pro Jahr:",null,{"$f":"C20*C22/100","v":{"$error":"#DIV/0!"}},"Euro",{"$f":"E20*C22/100","v":{"$error":"#DIV/0!"}},"Euro"]
[]
["Abschreibungen auf den Abrechnungszeitraum gekürzt \n(sofern keine ganzjährige Förderung):",null,null,"Euro im Bewilligungszeitraum"]
[]
["Sofern noch nicht im Jugendamt vorliegend, ist ein Nachweis über die Anschaffungs- und Herstellungskosten sowie ein Raumbelegungsplan (Flächen in qm gesamt/Ausweisung der Flächen in qm, die durch das Angebot dauerhaft genutzt werden) bei anteiliger Nutzung mit einzureichen."]
[]
["https://www.smart-rechner.de/abschreibung/ratgeber/abschreibung_gebaeude.php"]

{"sheet":"Personalausgaben","index":6,"n_rows":26,"n_cols":12,"rows_kept":26,"merged":[[0,9,0,10],[6,1,6,3],[6,4,6,6],[6,7,6,8],[6,9,6,10],[7,1,7,3],[7,4,7,6],[7,7,7,8],[7,9,7,10],[8,1,8,3],[8,4,8,6],[8,7,8,8],[8,9,8,10],[9,1,9,3],[9,4,9,6],[9,7,9,8],[9,9,9,10],[10,1,10,3],[10,4,10,6],[10,7,10,8],[10,9,10,10],[11,1,11,3],[11,4,11,6],[11,7,11,8],[11,9,11,10],[12,1,12,3],[12,4,12,6],[12,7,12,8],[12,9,12,10],[13,1,13,3],[13,4,13,6],[13,7,13,8],[13,9,13,10],[14,1,14,3],[14,4,14,6],[14,7,14,8],[14,9,14,10],[15,1,15,3],[15,4,15,6],[15,7,15,8],[15,9,15,10],[16,1,16,3],[16,4,16,6],[16,7,16,8],[16,9,16,10],[17,1,17,3],[17,4,17,6],[17,7,17,8],[17,9,17,10],[18,1,18,3],[18,4,18,6],[18,7,18,8],[18,9,18,10],[19,1,19,8],[19,9,19,10],[20,0,20,3],[20,6,20,7],[20,9,20,10],[21,9,21,10],[22,0,22,10],[24,0,24,10],[25,0,30,10]]}
["Landeshauptstadt Dresden - Jugendamt",{"$nulls":7},"Az:",{"$f":"Deckblatt!L3","v":0}]
[]
["Zu jeder beantragten Person ist das Datenblatt \"Angaben zur Fachkraft\" dem Antrag beizufügen!"]
[]
[{"$nulls":3},"Personalausgaben ",null,null,{"$f":"Deckblatt!O21","v":2024}]
[]
["Nr.","Name, Vorname",null,null,"Stellenbezeichnung",null,null,"Arbeitszeit\nh/Woche (Jahresdurchschnitt)",null,"Ausgaben                   in EUR"]
[1]
[2]
[3]
[4]
[5]
[6]
[7]
[8]
[9]
[10]
[11]
[12]
[null,"Berufsgenossenschaft*                                                                                                                          "]
["gesamt",{"$nulls":3},{"$f":"G21/39","v":0},"VzÄ",{"$f":"SUM(H8:I19)","v":0},null,"h",{"$f":"SUM(J8:K20)","v":0}]
[{"$nulls":8},"Fördermittelantrag"]
["*Beiträge zur Berufsgenossenschaft, welche die beantragten VzÄ betreffen, jedoch erst nach dem 28.2. des Förderfolgejahres gezahlt werden, sind auch erst im Folgejahr zu beantragen."]
["Weitere Finanzierungsquellen:"]
["Sofern zur Finanzierung einer Fachkraft weitere Fördermittelgeber/Finanzierungsquellen geplant sind, ist die Fachkraft, Finanzierungsquelle und die geplante Höhe zu benennen."]
[{"$nulls":11},"Mit Doppelklick ins Feld / Absatz einfügen: Alt und Enter gleichzeitig klicken"]

{"sheet":"Angaben zur Fachkraft","index":7,"n_rows":58,"n_cols":26,"rows_kept":58,"merged":[[2,9,2,14],[4,1,4,6],[4,9,4,14],[7,0,7,4],[7,5,7,7],[7,8,7,14],[9,2,9,3],[9,4,9,6],[9,7,9,9],[12,0,13,8],[15,0,16,8],[18,0,19,8],[22,9,22,13],[23,0,23,1],[23,2,23,3],[23,5,23,7],[23,9,23,14],[26,8,27,13],[27,4,28,5],[29,1,29,14],[30,0,30,10],[30,13,32,14],[34,0,34,2],[34,3,34,4],[34,5,34,6],[34,7,34,8],[34,9,34,10],[34,11,34,12],[34,13,34,14],[36,9,36,14],[37,0,37,2],[37,3,37,5],[37,6,37,8],[37,9,38,14],[38,0,38,2],[38,3,38,5],[38,6,38,8],[41,0,41,14],[46,0,46,2],[46,3,46,4],[46,5,46,6],[46,8,46,10],[46,11,46,12],[46,13,46,14],[47,0,47,2],[47,3,47,4],[47,5,47,6],[47,8,47,10],[47,11,47,12],[47,13,47,14],[48,0,48,2],[48,3,48,4],[48,5,48,6],[48,8,48,10],[48,11,48,12],[48,13,48,14],[52,0,52,3],[52,4,52,5],[52,6,52,8],[52,9,53,10],[52,11,52,12],[52,13,53,14],[53,4,54,5],[54,9,54,10],[54,13,54,14],[55,0,55,3],[55,4,55,8],[55,9,57,11],[55,12,58,14],[56,0,56,3],[56,4,56,8],[57,4,57,8]]}
["Landeshauptstadt Dresden - Jugendamt",{"$nulls":13},"Förderung von Trägern der freien Jugendhilfe"]
[]
["Angaben zur Fachkraft",{"$nulls":7},"Zeitraum:"]
[]
["Träger:",{"$nulls":7},"Angebot:"]
["Zutreffendes ist anzukreuzen."]
["Name, Vorname",{"$nulls":4},"Geburtsdatum",null,null,"Stellen-/Tätigkeitsbezeichnung"]
[]
["Stellenbeschreibung"]
["ist beigefügt",null,"oder",null,"Stellenbeschreibung liegt\ndem Amt vor mit Datum: ",{"$nulls":6},"Sie behält ihre Gültigkeit:"]
["Ausbildung"]
["Berufsabschluss:"]
[{"$nulls":9},"Kopie* des Abschlusses:"]
[{"$nulls":9},"ist beigefügt:",null,null,"liegt dem Amt vor:"]
["berufsbegleitende Ausbildung:"]
[{"$nulls":9},"Immatrikulationsbescheinigung:"]
[{"$nulls":9},"ist beigefügt:",null,null,"liegt dem Amt vor:"]
["Zusatzqualifikationen:"]
[{"$nulls":9},"Kopie*:"]
[{"$nulls":9},"ist beigefügt:",null,null,"liegt dem Amt vor:"]
["*Die kopierten Qualifikationsnachweise müssen mit dem Vermerk des Trägers \"Das Original hat am ... (Datum) vorgelegen\" versehen sein."]
["Vergütung"]
["in Anlehnung an den Tarif öffentlicher Dienst (TVöD bzw. TVÜ-VKA)",{"$nulls":8},"anderer Tarifvertrag (Bezeichnung)"]
["Entgeltgruppe/\nStufe:",{"$nulls":4},"übergeleitete(r)  Beschäftigte(r)"]
[]
["Sozialdaten (nur für \"übergeleitete Beschäftigte\")"]
["Familienstand:",null,"ledig",null,"verheiratet",null,"verwitwet",null,"Ehepartner im öffentlichen Dienst  bzw. nach dem Überleitungstarifvertrag des TVöD vergütet:"]
["Stichtag 30.09.2005",{"$nulls":3},"geschieden"]
[]
["Kinder: ","(Angaben sind für alle übergeleitete Beschäftigte zu leisten; es sind nur die Kinder zu berücksichtigen, die bis zum 31.12.2005 geboren wurden)"]
["1. Anzahl der Kinder, für welche der/die Beschäftigte im Antragszeitraum Kindergeld erhält:"]
["                       ",{"$nulls":24},","]
[]
[]
["Geb.daten der zu berücksichtigenden Kinder:"]
[{"$nulls":3},"1. Kind",null,"2. Kind",null,"3. Kind",null,"4. Kind",null,"5. Kind",null,"6. Kind"]
["Beschäftigungszeiten",{"$nulls":8},"Unterbrechungszeiten mit Auswirkungen auf die Stufenlaufzeit gemäß § 16 TVöD (z.B. Elternzeit)",{"$nulls":5}," ->"]
["in der o. g. Tätigkeit beschäftigt seit: ",null,null,"beim Träger beschäftigt seit/\nausgeschieden am:",null,null,"Aufnahme der Tätigkeit im Angebot am:"]
[]
["Weitere Unterbrechungszeiten ohne Lohnfortzahlung durch den Zuwendungsempfänger",{"$nulls":13},"ggf. Blatt anfügen"]
["(z.B. Beschäftigungsverbot, Schutzfristen nach Mutterschutzgesetz, Langzeiterkrankung)"]
[]
["Arbeitsumfang ",{"$nulls":4},"Jahresdurchschnitt:"]
["Regelmäßige wöchentliche Arbeitszeit:",{"$nulls":4},{"$f":"ROUND((F47/12*D47)+(N47/12*L47)+(F48/12*D48)+(N48/12*L48)+(F49/12*D49)+(N49/12*L49),2)","v":0},"h/Woche",null,{"$f":"ROUND(F44/39,2)","v":0},"in VzÄ","Vollzeit nach TVöD 39h/W"]
[]
["Datum (von - bis)",null,null," in Monaten",null,"Std./Woche",null,null,"Datum (von - bis)",null,null," in Monaten",null,"Std./Woche"]
[]
[]
[]
[]
["Lohnnebenkosten etc.",{"$nulls":3},"geringfügig beschäftigt (Minijob)"]
[]
["AG-Anteile SV in %",{"$nulls":3},"Welche Krankenkasse?",null,"Umlage-Verfahren der Krankenkassen in %",null,null,"AG-Anteile ges.               in EUR",null,"VWL in EUR",null,"bAV/Jahr                 in EUR"]
["PV","RV","AV","KV",null,null,"U1","U2","IU",null,null,"im Monat","im Jahr"]
[]
["PV: Pflegeversicherung                                RV: Rentenversicherung",{"$nulls":3},"U1: Lohnfortzahl.verfahren der Krankenkassen im Krankheitsfall",{"$nulls":4},"VWL: Vermögenswirksame Leistungen für 1,0 VzÄ max. 6,65 € pro Monat",null,null,"bAV: die Arbeitgeberaufwendungen für eine betriebl. Altersvorsorge sind max. in Höhe der städtischen Altersvorsorge (ZVK) zuwendungsfähig. "]
["AV: Arbeitslosenversicherung                         KV: Krankenversicherung",{"$nulls":3},"U2: Lohnfortzahlungsverfahren der Krankenkassen bei Mutterschaft"]
[{"$nulls":4},"IU: Insolvenzgeldumlage an die KK (ausgenommen Körperschaften des öff. Rechts)"]

{"sheet":"Ausgaben-u.Finanzierungsplan ","index":8,"n_rows":20,"n_cols":21,"rows_kept":20,"merged":[[0,15,0,18],[2,13,2,14],[4,0,5,3],[4,4,4,8],[4,9,4,13],[4,14,4,18],[4,20,7,24],[5,4,5,7],[5,9,5,12],[5,14,5,17],[7,0,7,3],[7,4,7,8],[7,9,7,13],[7,14,7,18],[8,0,8,3],[8,4,8,7],[8,9,8,12],[8,14,8,17],[9,0,9,3],[9,4,9,7],[9,9,9,12],[9,14,9,17],[10,0,10,3],[10,4,10,7],[10,9,10,12],[10,14,10,17],[11,0,11,3],[11,4,11,7],[11,9,11,12],[11,14,11,17],[12,0,12,3],[12,4,12,7],[12,9,12,12],[12,14,12,17],[13,4,13,8],[13,9,13,13],[14,0,14,5],[14,6,14,10],[14,11,14,14],[14,15,14,18],[14,20,17,24],[15,0,15,3],[15,4,15,5],[15,6,15,10],[15,11,15,14],[15,15,15,18],[18,0,18,18],[20,0,20,18]]}
["Landeshauptstadt Dresden - Jugendamt",{"$nulls":8},{"$f":"Deckblatt!U1","v":"Förderung von Trägern der freien Jugendhilfe"},{"$nulls":4},"Az:",{"$f":"Deckblatt!L3","v":0}]
[]
["Ausgaben- und Finanzierungsplan ",{"$nulls":12},{"$f":"Deckblatt!O21","v":2024}]
[]
["Ausgaben",{"$nulls":3},"Personalausgaben",{"$nulls":4},"Sachausgaben",{"$nulls":4},"Gesamtausgaben",{"$nulls":5},"Ausgaben, die komplett aus anderen Mitteln finanziert werden, sind auch dann nicht im Antrag darzustellen, wenn sie zur Angebotsdurchführung notwendig sind, da sie keine Auswirkung auf die Förderhöhe haben.  Ist dem Antragsteller wichtig, dass diese Ausgaben und entsprechende Finanzierungsquellen der Förderbehörde bekannt gegeben werden, ist dafür das Bemerkungsfeld zu nutzen."]
[{"$nulls":4},{"$f":"Personalausgaben!J21","v":0},{"$nulls":3},"Euro",{"$f":"Sachausgaben!N43","v":0},{"$nulls":3},"Euro",{"$f":"E6+J6","v":0},{"$nulls":3},"Euro"]
[]
["Finanzierung",{"$nulls":3},"Personalausgaben",{"$nulls":4},"Sachausgaben",{"$nulls":4},"gesamt"]
["Fördermittelantrag ",{"$nulls":3},{"$f":"Personalausgaben!J22","v":0},{"$nulls":3},"Euro",{"$f":"Sachausgaben!N44","v":0},{"$nulls":3},"Euro",{"$f":"E9+J9","v":0},{"$nulls":3},"Euro"]
["weitere öffentliche Mittel",{"$nulls":7},"Euro",{"$nulls":4},"Euro",{"$f":"SUM(E10:M10)","v":0},{"$nulls":3},"Euro"]
["sonstige Finanzierungsquellen",{"$nulls":7},"Euro",{"$nulls":4},"Euro",{"$f":"SUM(E11:M11)","v":0},{"$nulls":3},"Euro"]
["Eigenmittel",{"$nulls":7},"Euro",{"$nulls":4},"Euro",{"$f":"SUM(E12:M12)","v":0},{"$nulls":3},"Euro"]
["gesamt",{"$nulls":3},{"$f":"E9+E10+E11+E12","v":0},{"$nulls":3},"Euro",{"$f":"SUM(J9:M12)","v":0},{"$nulls":3},"Euro",{"$f":"SUM(E13:M13)","v":0},{"$nulls":3},"Euro"]
[{"$nulls":4},{"$f":"IF(E6<>E13,\"Fehler: Ausgaben ungleich Finanzierung\",\"\")","v":""},{"$nulls":4},{"$f":"IF(J6<>J13,\"Fehler: Ausgaben ungleich Finanzierung\",\"\")","v":""}]
["Eigenanteil\n(Eigenmittel + Eigenleistungen)\n(kein Bestandteil der Ausgaben)",{"$nulls":5},"Eigenarbeits-\nleistung\nin Stunden",{"$nulls":4},"Stundensatz \n(max. Mindestlohn)",{"$nulls":3},"Eigenmittel %",{"$nulls":4},"Eigenleistungen sind kein Bestandteil der Ausgaben. Sie werden ihrem geldwerten Betrag entsprechend in der Berechnungsformel \"Eigenanteil in %\" auf der Ausgabenseite zu den Gesamtausgaben hinzu gerechnet und auf der Einnahmenseite bei der Berechnung des prozentualen Eigenanteils neben den Eigenmitteln mit berücksichtigt."]
["Eigenanteil in %",{"$nulls":3},{"$f":"(O12+(G16*L16))*100/(O6+(G16*L16))","v":{"$error":"#DIV/0!"}},{"$nulls":10},{"$f":"O12*100/O6","v":{"$error":"#DIV/0!"}}]
[]
["Weiter öffentliche Mittel sind zu beschreiben (Fördermittelgeber, Betrag)"]
[{"$nulls":20},"Absatz einfügen: ALT- und Enter-Taste gleichzeitig drücken"]
["Platz für Bemerkungen:"]